[Event "Titled Tuesday Blitz May 10 Early 2022"]
[White "Lashkin, Jegor"]
[Black "Harshavardhan G B"]
[WhiteFideId "13907808"]
[BlackFideId "25059009"]
[WhiteElo "2368"]
[BlackElo "1831"]
[Result "1-0"]
[Round "09"]
[TimeControl "180+1"]
[Date "2022.05.10"]
[WhiteClock "0:01:34"]
[BlackClock "0:00:16"]

1. e4 {[%clk 0:03:00]}  e5 {[%clk 0:02:05]} 2. Nf3 {[%clk 0:03:00]}  Nc6 {[%clk 0:02:04]} 3. Nc3 {[%clk 0:03:00]}  Nf6 {[%clk 0:02:03]} 4. d4 {[%clk 0:03:01]}  exd4 {[%clk 0:02:03]} 5. Nxd4 {[%clk 0:03:02]}  Bb4 {[%clk 0:02:02]} 6. Nxc6 {[%clk 0:03:02]}  bxc6 {[%clk 0:02:03]} 7. Bd3 {[%clk 0:03:03]}  d5 {[%clk 0:02:03]} 8. exd5 {[%clk 0:03:04]}  cxd5 {[%clk 0:02:03]} 9. O-O {[%clk 0:03:04]}  O-O {[%clk 0:02:03]} 10. h3 {[%clk 0:03:05]}  c6 {[%clk 0:02:02]} 11. Qf3 {[%clk 0:03:05]}  h6 {[%clk 0:02:01]} 12. Bf4 {[%clk 0:03:06]}  Bd6 {[%clk 0:01:58]} 13. Rfe1 {[%clk 0:03:05]}  Rb8 {[%clk 0:01:56]} 14. Bxd6 {[%clk 0:03:05]}  Qxd6 {[%clk 0:01:56]} 15. b3 {[%clk 0:03:06]}  c5 {[%clk 0:01:50]} 16. Rad1 {[%clk 0:03:05]}  Bb7 {[%clk 0:01:50]} 17. Qg3 {[%clk 0:03:02]}  Qxg3 {[%clk 0:01:47]} 18. fxg3 {[%clk 0:03:03]}  Rfe8 {[%clk 0:01:47]} 19. Na4 {[%clk 0:03:03]}  Rbc8 {[%clk 0:01:42]} 20. Bf5 {[%clk 0:02:42]}  Rc7 {[%clk 0:01:39]} 21. c3 {[%clk 0:02:42]}  Kf8 {[%clk 0:01:38]} 22. Kf2 {[%clk 0:02:41]}  Ba6 {[%clk 0:01:37]} 23. Rxe8+ {[%clk 0:02:36]}  Kxe8 {[%clk 0:01:38]} 24. b4 {[%clk 0:02:23]}  cxb4 {[%clk 0:01:35]} 25. cxb4 {[%clk 0:02:24]}  g6 {[%clk 0:01:29]} 26. Bb1 {[%clk 0:02:23]}  Bc4 {[%clk 0:01:08]} 27. a3 {[%clk 0:02:15]}  Nd7 {[%clk 0:01:01]} 28. Bd3 {[%clk 0:02:05]}  Ke7 {[%clk 0:00:55]} 29. Bxc4 {[%clk 0:02:05]}  dxc4 {[%clk 0:00:56]} 30. Nc3 {[%clk 0:02:04]}  Nb6 {[%clk 0:00:52]} 31. a4 {[%clk 0:02:05]}  Rd7 {[%clk 0:00:52]} 32. Rxd7+ {[%clk 0:01:56]}  Nxd7 {[%clk 0:00:43]} 33. Ke3 {[%clk 0:01:57]}  Ke6 {[%clk 0:00:34]} 34. Kd4 {[%clk 0:01:56]}  Ne5 {[%clk 0:00:35]} 35. b5 {[%clk 0:01:53]}  f5 {[%clk 0:00:32]} 36. a5 {[%clk 0:01:53]}  Kd6 {[%clk 0:00:32]} 37. Nd5 {[%clk 0:01:41]}  Nd3 {[%clk 0:00:22]} 38. Ne3 {[%clk 0:01:38]}  Ne1 {[%clk 0:00:20]} 39. Nxc4+ {[%clk 0:01:39]}  Kc7 {[%clk 0:00:18]} 40. Ne3 {[%clk 0:01:37]}  h5 {[%clk 0:00:17]} 41. h4 {[%clk 0:01:37]}  Kd6 {[%clk 0:00:15]} 42. Kc3 {[%clk 0:01:30]}  Kc5 {[%clk 0:00:14]} 43. b6 {[%clk 0:01:29]}  axb6 {[%clk 0:00:13]} 44. axb6 {[%clk 0:01:30]}  Kxb6 {[%clk 0:00:13]} 45. Kd2 {[%clk 0:01:30]}  Nxg2 {[%clk 0:00:13]} 46. Nxg2 {[%clk 0:01:30]}  Kc5 {[%clk 0:00:14]} 47. Nf4 {[%clk 0:01:31]}  Kd6 {[%clk 0:00:14]} 48. Nxg6 {[%clk 0:01:30]}  Kd5 {[%clk 0:00:14]} 49. Ke3 {[%clk 0:01:30]}  Ke6 {[%clk 0:00:13]} 50. Nf4+ {[%clk 0:01:30]}  Kf6 {[%clk 0:00:13]} 51. Nxh5+ {[%clk 0:01:31]}  Kg6 {[%clk 0:00:14]} 52. Nf4+ {[%clk 0:01:32]}  Kh6 {[%clk 0:00:15]} 53. Kd4 {[%clk 0:01:33]}  Kg7 {[%clk 0:00:16]} 54. Ke5 {[%clk 0:01:34]} 1-0


[Site "https://www.chess.com"]

[Event "Titled Tuesday Blitz May 10 Early 2022"]
[White "Le Ruyet, Leopold"]
[Black "Gatterer, Florian"]
[WhiteFideId "645923"]
[BlackFideId "811688"]
[WhiteElo "2276"]
[BlackElo "2218"]
[Result "1-0"]
[Round "09"]
[TimeControl "180+1"]
[Date "2022.05.11"]
[WhiteClock "0:00:15"]
[BlackClock "0:00:02"]

1. c4 {[%clk 0:03:00]}  e5 {[%clk 0:02:56]} 2. Nc3 {[%clk 0:03:00]}  Nf6 {[%clk 0:02:56]} 3. Nf3 {[%clk 0:02:59]}  Nc6 {[%clk 0:02:56]} 4. e4 {[%clk 0:03:00]}  Bb4 {[%clk 0:02:52]} 5. d3 {[%clk 0:02:48]}  O-O {[%clk 0:02:51]} 6. Be2 {[%clk 0:02:47]}  d6 {[%clk 0:02:47]} 7. O-O {[%clk 0:02:47]}  Bg4 {[%clk 0:02:47]} 8. Nd5 {[%clk 0:02:45]}  Bc5 {[%clk 0:02:34]} 9. Bg5 {[%clk 0:02:41]}  Bxf3 {[%clk 0:02:21]} 10. Bxf3 {[%clk 0:02:34]}  Kh8 {[%clk 0:02:11]} 11. Bg4 {[%clk 0:02:23]}  Nd4 {[%clk 0:02:05]} 12. b4 {[%clk 0:02:02]}  Bb6 {[%clk 0:01:58]} 13. Nxb6 {[%clk 0:02:01]}  axb6 {[%clk 0:01:56]} 14. f4 {[%clk 0:02:01]}  h6 {[%clk 0:01:42]} 15. fxe5 {[%clk 0:01:47]}  hxg5 {[%clk 0:01:27]} 16. exf6 {[%clk 0:01:46]}  gxf6 {[%clk 0:01:27]} 17. Bf5 {[%clk 0:01:20]}  Kg7 {[%clk 0:01:22]} 18. Rf2 {[%clk 0:01:13]}  Rh8 {[%clk 0:01:15]} 19. Qg4 {[%clk 0:01:02]}  Rh4 {[%clk 0:01:01]} 20. Qg3 {[%clk 0:01:01]}  Qe7 {[%clk 0:01:01]} 21. Raf1 {[%clk 0:00:58]}  Qe5 {[%clk 0:00:58]} 22. Bh3 {[%clk 0:00:36]}  Qxg3 {[%clk 0:00:51]} 23. hxg3 {[%clk 0:00:37]}  Rh6 {[%clk 0:00:50]} 24. Rd2 {[%clk 0:00:27]}  Ra3 {[%clk 0:00:47]} 25. Kf2 {[%clk 0:00:19]}  Rh8 {[%clk 0:00:44]} 26. Ke3 {[%clk 0:00:19]}  c5 {[%clk 0:00:27]} 27. bxc5 {[%clk 0:00:19]}  bxc5 {[%clk 0:00:27]} 28. Rb1 {[%clk 0:00:19]}  g4 {[%clk 0:00:27]} 29. Bxg4 {[%clk 0:00:17]}  Rh2 {[%clk 0:00:17]} 30. Bh3 {[%clk 0:00:18]}  Rc3 {[%clk 0:00:15]} 31. Kf2 {[%clk 0:00:17]}  b5 {[%clk 0:00:12]} 32. cxb5 {[%clk 0:00:15]}  Kh6 {[%clk 0:00:11]} 33. b6 {[%clk 0:00:15]}  Nc6 {[%clk 0:00:08]} 34. b7 {[%clk 0:00:15]}  Nb8 {[%clk 0:00:09]} 35. Kg1 {[%clk 0:00:15]}  Rxh3 {[%clk 0:00:09]} 36. gxh3 {[%clk 0:00:16]}  Ra3 {[%clk 0:00:08]} 37. Kf2 {[%clk 0:00:16]}  Ra6 {[%clk 0:00:08]} 38. Kf3 {[%clk 0:00:16]}  Kg7 {[%clk 0:00:08]} 39. Kf4 {[%clk 0:00:17]}  Kg6 {[%clk 0:00:09]} 40. g4 {[%clk 0:00:15]}  Rc6 {[%clk 0:00:09]} 41. h4 {[%clk 0:00:16]}  Rc7 {[%clk 0:00:09]} 42. h5+ {[%clk 0:00:16]}  Kg7 {[%clk 0:00:09]} 43. Kf5 {[%clk 0:00:17]}  Nc6 {[%clk 0:00:06]} 44. b8=Q {[%clk 0:00:15]}  Nxb8 {[%clk 0:00:06]} 45. Rxb8 {[%clk 0:00:14]}  Ra7 {[%clk 0:00:07]} 46. Rb6 {[%clk 0:00:12]}  Rd7 {[%clk 0:00:05]} 47. g5 {[%clk 0:00:13]}  fxg5 {[%clk 0:00:05]} 48. Kxg5 {[%clk 0:00:13]}  d5 {[%clk 0:00:05]} 49. Kf5 {[%clk 0:00:14]}  dxe4 {[%clk 0:00:05]} 50. Kxe4 {[%clk 0:00:14]}  Rd4+ {[%clk 0:00:05]} 51. Ke5 {[%clk 0:00:14]}  Rh4 {[%clk 0:00:06]} 52. Rg2+ {[%clk 0:00:13]}  Kh7 {[%clk 0:00:06]} 53. Rf6 {[%clk 0:00:14]}  Rxh5+ {[%clk 0:00:05]} 54. Rf5 {[%clk 0:00:14]}  Rh3 {[%clk 0:00:05]} 55. Rxf7+ {[%clk 0:00:15]}  Kh8 {[%clk 0:00:05]} 56. Rb2 {[%clk 0:00:13]}  Re3+ {[%clk 0:00:02]} 57. Kf4 {[%clk 0:00:11]}  Re8 {[%clk 0:00:02]} 58. Rbb7 {[%clk 0:00:12]}  c4 {[%clk 0:00:02]} 59. Rh7+ {[%clk 0:00:12]}  Kg8 {[%clk 0:00:02]} 60. Rbg7+ {[%clk 0:00:13]}  Kf8 {[%clk 0:00:02]} 61. Rh8+ {[%clk 0:00:14]}  Kxg7 {[%clk 0:00:02]} 62. Rxe8 {[%clk 0:00:15]}  cxd3 {[%clk 0:00:02]} 63. Rd8 {[%clk 0:00:15]} 1-0


[Site "https://www.chess.com"]

[Event "Titled Tuesday Blitz May 10 Early 2022"]
[White "Legenia, Artem"]
[Black "Stepanencu, Nicodim-Cosmin"]
[WhiteFideId "14136945"]
[BlackFideId "1256220"]
[WhiteElo "1936"]
[BlackElo "1945"]
[Result "0-1"]
[Round "09"]
[TimeControl "180+1"]
[Date "2022.05.11"]
[WhiteClock "0:00:05"]
[BlackClock "0:00:08"]

1. d4 {[%clk 0:03:00]}  d6 {[%clk 0:02:52]} 2. Nf3 {[%clk 0:02:59]}  g6 {[%clk 0:02:52]} 3. Bf4 {[%clk 0:02:58]}  Bg7 {[%clk 0:02:53]} 4. e3 {[%clk 0:02:59]}  Nd7 {[%clk 0:02:52]} 5. h3 {[%clk 0:02:59]}  e5 {[%clk 0:02:52]} 6. Bh2 {[%clk 0:02:57]}  Qe7 {[%clk 0:02:51]} 7. dxe5 {[%clk 0:02:56]}  dxe5 {[%clk 0:02:50]} 8. c3 {[%clk 0:02:56]}  Ngf6 {[%clk 0:02:50]} 9. Be2 {[%clk 0:02:55]}  O-O {[%clk 0:02:51]} 10. O-O {[%clk 0:02:55]}  b6 {[%clk 0:02:51]} 11. Nbd2 {[%clk 0:02:55]}  Bb7 {[%clk 0:02:52]} 12. Qc2 {[%clk 0:02:55]}  Rfd8 {[%clk 0:02:49]} 13. Rad1 {[%clk 0:02:54]}  a5 {[%clk 0:02:48]} 14. Bb5 {[%clk 0:02:54]}  Nd5 {[%clk 0:02:36]} 15. Rfe1 {[%clk 0:02:46]}  Nc5 {[%clk 0:02:29]} 16. Nb3 {[%clk 0:02:38]}  f6 {[%clk 0:01:18]} 17. Bc4 {[%clk 0:02:01]}  a4 {[%clk 0:01:18]} 18. e4 {[%clk 0:01:21]}  axb3 {[%clk 0:01:15]} 19. axb3 {[%clk 0:01:20]}  c6 {[%clk 0:00:57]} 20. b4 {[%clk 0:01:14]}  Ne6 {[%clk 0:00:51]} 21. exd5 {[%clk 0:01:11]}  cxd5 {[%clk 0:00:51]} 22. Bb5 {[%clk 0:01:07]}  Rac8 {[%clk 0:00:52]} 23. Qb3 {[%clk 0:00:53]}  Kh8 {[%clk 0:00:51]} 24. Ra1 {[%clk 0:00:49]}  Ra8 {[%clk 0:00:45]} 25. Rad1 {[%clk 0:00:45]}  d4 {[%clk 0:00:33]} 26. Nd2 {[%clk 0:00:44]}  dxc3 {[%clk 0:00:29]} 27. bxc3 {[%clk 0:00:43]}  Ng5 {[%clk 0:00:20]} 28. Nc4 {[%clk 0:00:39]}  Qe6 {[%clk 0:00:16]} 29. Nd2 {[%clk 0:00:31]}  Rxd2 {[%clk 0:00:07]} 30. Qxe6 {[%clk 0:00:16]}  Rxd1 {[%clk 0:00:07]} 31. Rxd1 {[%clk 0:00:16]}  Nxe6 {[%clk 0:00:08]} 32. Rd7 {[%clk 0:00:16]}  Ra1+ {[%clk 0:00:06]} 33. Bf1 {[%clk 0:00:16]}  Ba6 {[%clk 0:00:07]} 34. b5 {[%clk 0:00:05]}  Bxb5 {[%clk 0:00:08]} 0-1


[Site "https://www.chess.com"]

[Event "Titled Tuesday Blitz May 10 Early 2022"]
[White "Maghsoodloo, Parham"]
[Black "Yuan, Qingyu"]
[WhiteFideId "12539929"]
[BlackFideId "8609772"]
[WhiteElo "2630"]
[BlackElo "2359"]
[Result "1-0"]
[Round "09"]
[TimeControl "180+1"]
[Date "2022.05.10"]
[WhiteClock "0:01:15"]
[BlackClock "0:00:01"]

1. d4 {[%clk 0:03:00]}  d5 {[%clk 0:02:51]} 2. Nf3 {[%clk 0:03:00]}  Nf6 {[%clk 0:02:46]} 3. c4 {[%clk 0:03:00]}  e6 {[%clk 0:02:34]} 4. Nc3 {[%clk 0:02:56]}  a6 {[%clk 0:02:29]} 5. cxd5 {[%clk 0:02:50]}  exd5 {[%clk 0:02:29]} 6. Bg5 {[%clk 0:02:50]}  Be6 {[%clk 0:02:29]} 7. e3 {[%clk 0:02:49]}  Nbd7 {[%clk 0:02:30]} 8. Bd3 {[%clk 0:02:47]}  Bd6 {[%clk 0:02:23]} 9. h3 {[%clk 0:02:46]}  c6 {[%clk 0:02:21]} 10. Bf4 {[%clk 0:02:43]}  Qc7 {[%clk 0:02:18]} 11. Qd2 {[%clk 0:02:40]}  O-O {[%clk 0:01:45]} 12. O-O {[%clk 0:02:38]}  Nh5 {[%clk 0:01:44]} 13. Ne2 {[%clk 0:02:27]}  g6 {[%clk 0:01:23]} 14. Ng5 {[%clk 0:02:21]}  Rae8 {[%clk 0:01:16]} 15. Bxd6 {[%clk 0:02:17]}  Qxd6 {[%clk 0:01:16]} 16. Nf4 {[%clk 0:02:18]}  Nxf4 {[%clk 0:01:11]} 17. exf4 {[%clk 0:02:18]}  Nf6 {[%clk 0:01:11]} 18. Rae1 {[%clk 0:02:13]}  Bd7 {[%clk 0:01:08]} 19. Re5 {[%clk 0:02:13]}  h6 {[%clk 0:01:01]} 20. Nf3 {[%clk 0:02:05]}  Ne4 {[%clk 0:01:01]} 21. Qe3 {[%clk 0:01:53]}  f6 {[%clk 0:00:52]} 22. Bxe4 {[%clk 0:01:52]}  fxe5 {[%clk 0:00:41]} 23. fxe5 {[%clk 0:01:45]}  Qe6 {[%clk 0:00:37]} 24. Bd3 {[%clk 0:01:36]}  Kg7 {[%clk 0:00:36]} 25. Nh4 {[%clk 0:01:25]}  g5 {[%clk 0:00:23]} 26. Ng6 {[%clk 0:01:25]}  Rf5 {[%clk 0:00:15]} 27. g4 {[%clk 0:01:25]}  Rf7 {[%clk 0:00:15]} 28. f4 {[%clk 0:01:25]}  gxf4 {[%clk 0:00:13]} 29. Nxf4 {[%clk 0:01:24]}  Qe7 {[%clk 0:00:08]} 30. Nh5+ {[%clk 0:01:24]}  Kg8 {[%clk 0:00:07]} 31. Qxh6 {[%clk 0:01:22]}  Rxf1+ {[%clk 0:00:08]} 32. Kxf1 {[%clk 0:01:23]}  Qf8+ {[%clk 0:00:05]} 33. Nf6+ {[%clk 0:01:23]}  Kf7 {[%clk 0:00:04]} 34. Qxf8+ {[%clk 0:01:23]}  Rxf8 {[%clk 0:00:02]} 35. Nxd7 {[%clk 0:01:23]}  Rh8 {[%clk 0:00:03]} 36. Kg2 {[%clk 0:01:23]}  Ke7 {[%clk 0:00:02]} 37. Bf5 {[%clk 0:01:20]}  a5 {[%clk 0:00:01]} 38. Kg3 {[%clk 0:01:17]}  b6 {[%clk 0:00:01]} 39. h4 {[%clk 0:01:16]}  c5 {[%clk 0:00:01]} 40. dxc5 {[%clk 0:01:17]}  bxc5 {[%clk 0:00:02]} 41. Nxc5 {[%clk 0:01:17]}  Rb8 {[%clk 0:00:02]} 42. Nd3 {[%clk 0:01:17]}  a4 {[%clk 0:00:02]} 43. h5 {[%clk 0:01:17]}  d4 {[%clk 0:00:01]} 44. h6 {[%clk 0:01:17]}  Rb6 {[%clk 0:00:01]} 45. g5 {[%clk 0:01:17]}  Kf7 {[%clk 0:00:01]} 46. g6+ {[%clk 0:01:16]}  Kg8 {[%clk 0:00:01]} 47. e6 {[%clk 0:01:16]}  Rb7 {[%clk 0:00:01]} 48. Kg4 {[%clk 0:01:16]}  Rb5 {[%clk 0:00:01]} 49. e7 {[%clk 0:01:15]}  Rb8 {[%clk 0:00:01]} 50. Be6+ {[%clk 0:01:15]}  Kh8 {[%clk 0:00:01]} 51. Ne5 {[%clk 0:01:15]}  a3 {[%clk 0:00:01]} 52. Nf7+ {[%clk 0:01:14]}  Kg8 {[%clk 0:00:01]} 53. Nd8+ {[%clk 0:01:15]}  Kh8 {[%clk 0:00:01]} 54. e8=Q# {[%clk 0:01:15]} 1-0


[Site "https://www.chess.com"]

[Event "Titled Tuesday Blitz May 10 Early 2022"]
[White "Maksimenko, Viktor"]
[Black "Srihari L R"]
[WhiteFideId "13710478"]
[BlackFideId "46617116"]
[WhiteElo "2269"]
[BlackElo "2121"]
[Result "0-1"]
[Round "09"]
[TimeControl "180+1"]
[Date "2022.05.11"]
[WhiteClock "0:00:03"]
[BlackClock "0:00:21"]

1. d4 {[%clk 0:02:54]}  d6 {[%clk 0:02:45]} 2. e4 {[%clk 0:02:53]}  Nf6 {[%clk 0:02:45]} 3. Nc3 {[%clk 0:02:54]}  e5 {[%clk 0:02:44]} 4. dxe5 {[%clk 0:02:53]}  dxe5 {[%clk 0:02:43]} 5. Qxd8+ {[%clk 0:02:54]}  Kxd8 {[%clk 0:02:43]} 6. Bc4 {[%clk 0:02:55]}  Be6 {[%clk 0:02:42]} 7. Bxe6 {[%clk 0:02:50]}  fxe6 {[%clk 0:02:43]} 8. f3 {[%clk 0:02:48]}  a6 {[%clk 0:02:41]} 9. Be3 {[%clk 0:02:45]}  Bd6 {[%clk 0:02:41]} 10. Nh3 {[%clk 0:02:38]}  Ke7 {[%clk 0:02:41]} 11. Nf2 {[%clk 0:02:36]}  Nc6 {[%clk 0:02:32]} 12. Nd3 {[%clk 0:02:32]}  h6 {[%clk 0:02:30]} 13. O-O-O {[%clk 0:02:26]}  Nd7 {[%clk 0:02:30]} 14. Nb1 {[%clk 0:02:17]}  b5 {[%clk 0:02:24]} 15. Nd2 {[%clk 0:02:16]}  Rhb8 {[%clk 0:02:20]} 16. Nb3 {[%clk 0:02:16]}  a5 {[%clk 0:02:16]} 17. Nbc5 {[%clk 0:02:13]}  b4 {[%clk 0:02:10]} 18. Nxd7 {[%clk 0:01:57]}  Kxd7 {[%clk 0:02:11]} 19. c3 {[%clk 0:01:46]}  bxc3 {[%clk 0:02:09]} 20. bxc3 {[%clk 0:01:47]}  Ke7 {[%clk 0:02:09]} 21. Kc2 {[%clk 0:01:47]}  a4 {[%clk 0:02:08]} 22. Rb1 {[%clk 0:01:46]}  Na5 {[%clk 0:02:08]} 23. Rxb8 {[%clk 0:01:35]}  Rxb8 {[%clk 0:02:04]} 24. Rb1 {[%clk 0:01:35]}  Ra8 {[%clk 0:02:04]} 25. Nb2 {[%clk 0:01:01]}  Kd7 {[%clk 0:01:52]} 26. Bc1 {[%clk 0:00:56]}  a3 {[%clk 0:01:44]} 27. Nd3 {[%clk 0:00:56]}  Nc4 {[%clk 0:01:44]} 28. Nf2 {[%clk 0:00:37]}  Bc5 {[%clk 0:01:37]} 29. Nd3 {[%clk 0:00:37]}  Bd6 {[%clk 0:01:33]} 30. Nf2 {[%clk 0:00:37]}  Kc6 {[%clk 0:01:26]} 31. Kd3 {[%clk 0:00:34]}  Nb6 {[%clk 0:01:24]} 32. Nd1 {[%clk 0:00:34]}  Na4 {[%clk 0:01:23]} 33. Kc2 {[%clk 0:00:33]}  g5 {[%clk 0:01:20]} 34. Ne3 {[%clk 0:00:32]}  Nb6 {[%clk 0:01:04]} 35. Rb3 {[%clk 0:00:30]}  h5 {[%clk 0:00:58]} 36. h3 {[%clk 0:00:29]}  Be7 {[%clk 0:00:52]} 37. Bd2 {[%clk 0:00:22]}  Bc5 {[%clk 0:00:41]} 38. Bc1 {[%clk 0:00:18]}  Bxe3 {[%clk 0:00:34]} 39. Bxe3 {[%clk 0:00:19]}  g4 {[%clk 0:00:35]} 40. hxg4 {[%clk 0:00:18]}  hxg4 {[%clk 0:00:36]} 41. fxg4 {[%clk 0:00:19]}  Nc4 {[%clk 0:00:34]} 42. Bc1 {[%clk 0:00:19]}  Rf8 {[%clk 0:00:33]} 43. Kd3 {[%clk 0:00:18]}  Nd6 {[%clk 0:00:28]} 44. Bxa3 {[%clk 0:00:18]}  Rg8 {[%clk 0:00:28]} 45. Bxd6 {[%clk 0:00:14]}  cxd6 {[%clk 0:00:27]} 46. Ke3 {[%clk 0:00:12]}  Rxg4 {[%clk 0:00:27]} 47. Kf3 {[%clk 0:00:13]}  Rf4+ {[%clk 0:00:28]} 48. Ke3 {[%clk 0:00:14]}  d5 {[%clk 0:00:28]} 49. exd5+ {[%clk 0:00:14]}  exd5 {[%clk 0:00:28]} 50. Rb4 {[%clk 0:00:12]}  Rf8 {[%clk 0:00:26]} 51. Ra4 {[%clk 0:00:11]}  Rg8 {[%clk 0:00:24]} 52. Ra6+ {[%clk 0:00:11]}  Kc5 {[%clk 0:00:25]} 53. Kf2 {[%clk 0:00:07]}  Kc4 {[%clk 0:00:24]} 54. Rc6+ {[%clk 0:00:06]}  Kd3 {[%clk 0:00:24]} 55. Rc5 {[%clk 0:00:06]}  Rd8 {[%clk 0:00:21]} 56. a4 {[%clk 0:00:06]}  e4 {[%clk 0:00:20]} 57. a5 {[%clk 0:00:04]}  Kd2 {[%clk 0:00:20]} 58. g4 {[%clk 0:00:02]}  e3+ {[%clk 0:00:21]} 59. Kg2 {[%clk 0:00:03]}  e2 {[%clk 0:00:21]} 0-1


[Site "https://www.chess.com"]

[Event "Titled Tuesday Blitz May 10 Early 2022"]
[White "Maksimovic, Bojan"]
[Black "Kruckenhauser, Arthur"]
[WhiteFideId "14408120"]
[BlackFideId "1642812"]
[WhiteElo "2448"]
[BlackElo "2243"]
[Result "1-0"]
[Round "09"]
[TimeControl "180+1"]
[Date "2022.05.11"]
[WhiteClock "0:00:47"]
[BlackClock "0:00:07"]

1. Nf3 {[%clk 0:03:00]}  d5 {[%clk 0:02:56]} 2. d4 {[%clk 0:03:00]}  Nf6 {[%clk 0:02:56]} 3. c4 {[%clk 0:03:00]}  e6 {[%clk 0:02:56]} 4. g3 {[%clk 0:02:58]}  Bb4+ {[%clk 0:02:55]} 5. Bd2 {[%clk 0:02:58]}  a5 {[%clk 0:02:55]} 6. Bg2 {[%clk 0:02:57]}  O-O {[%clk 0:02:55]} 7. O-O {[%clk 0:02:57]}  dxc4 {[%clk 0:02:46]} 8. Qc2 {[%clk 0:02:57]}  b5 {[%clk 0:02:45]} 9. a4 {[%clk 0:02:48]}  Bxd2 {[%clk 0:02:43]} 10. Nbxd2 {[%clk 0:02:46]}  c6 {[%clk 0:02:40]} 11. b3 {[%clk 0:02:42]}  cxb3 {[%clk 0:02:38]} 12. Nxb3 {[%clk 0:02:43]}  Ba6 {[%clk 0:02:26]} 13. Rfd1 {[%clk 0:02:40]}  bxa4 {[%clk 0:02:20]} 14. Nc5 {[%clk 0:02:32]}  Bb5 {[%clk 0:02:19]} 15. Ne5 {[%clk 0:02:33]}  Nd5 {[%clk 0:02:17]} 16. Nxa4 {[%clk 0:02:28]}  Na6 {[%clk 0:01:22]} 17. e3 {[%clk 0:02:07]}  Nab4 {[%clk 0:01:20]} 18. Qd2 {[%clk 0:02:05]}  Qd6 {[%clk 0:01:07]} 19. Nc5 {[%clk 0:02:04]}  f6 {[%clk 0:01:01]} 20. Nf3 {[%clk 0:01:57]}  Rfe8 {[%clk 0:00:48]} 21. e4 {[%clk 0:01:52]}  Nb6 {[%clk 0:00:46]} 22. e5 {[%clk 0:01:50]}  fxe5 {[%clk 0:00:41]} 23. Nxe5 {[%clk 0:01:51]}  N6d5 {[%clk 0:00:40]} 24. Be4 {[%clk 0:01:50]}  Ra7 {[%clk 0:00:30]} 25. h4 {[%clk 0:01:49]}  Ne7 {[%clk 0:00:19]} 26. Ra3 {[%clk 0:01:45]}  Nf5 {[%clk 0:00:16]} 27. Rf3 {[%clk 0:01:38]}  Rf8 {[%clk 0:00:17]} 28. Qb2 {[%clk 0:01:22]}  Nd5 {[%clk 0:00:17]} 29. Qc2 {[%clk 0:01:15]}  a4 {[%clk 0:00:16]} 30. Bxf5 {[%clk 0:01:14]}  exf5 {[%clk 0:00:16]} 31. Rxf5 {[%clk 0:01:15]}  a3 {[%clk 0:00:14]} 32. Rxf8+ {[%clk 0:01:15]}  Qxf8 {[%clk 0:00:14]} 33. Ne6 {[%clk 0:01:13]}  Qe7 {[%clk 0:00:09]} 34. Ng5 {[%clk 0:01:13]}  g6 {[%clk 0:00:09]} 35. Re1 {[%clk 0:01:11]}  Qf6 {[%clk 0:00:08]} 36. Ng4 {[%clk 0:01:11]}  Qf8 {[%clk 0:00:07]} 37. h5 {[%clk 0:01:00]}  a2 {[%clk 0:00:07]} 38. Ra1 {[%clk 0:00:49]}  gxh5 {[%clk 0:00:07]} 39. Rxa2 {[%clk 0:00:47]}  Rxa2 {[%clk 0:00:07]} 40. Qxh7# {[%clk 0:00:47]} 1-0


[Site "https://www.chess.com"]

[Event "Titled Tuesday Blitz May 10 Early 2022"]
[White "Mammadzada, Gunay"]
[Black "Korchmar, Vasiliy"]
[WhiteFideId "13403729"]
[BlackFideId "24131750"]
[WhiteElo "2242"]
[BlackElo "2370"]
[Result "0-1"]
[Round "09"]
[TimeControl "180+1"]
[Date "2022.05.11"]
[WhiteClock "0:00:18"]
[BlackClock "0:01:19"]

1. d4 {[%clk 0:03:00]}  Nf6 {[%clk 0:02:59]} 2. Bf4 {[%clk 0:02:59]}  d5 {[%clk 0:03:00]} 3. e3 {[%clk 0:02:59]}  c5 {[%clk 0:03:00]} 4. c3 {[%clk 0:02:59]}  Nc6 {[%clk 0:03:01]} 5. Bd3 {[%clk 0:02:59]}  Bg4 {[%clk 0:03:00]} 6. Nf3 {[%clk 0:02:51]}  e6 {[%clk 0:03:00]} 7. O-O {[%clk 0:02:50]}  Bd6 {[%clk 0:03:01]} 8. Bg5 {[%clk 0:02:40]}  O-O {[%clk 0:02:59]} 9. Nbd2 {[%clk 0:02:39]}  e5 {[%clk 0:03:00]} 10. dxe5 {[%clk 0:02:34]}  Nxe5 {[%clk 0:03:01]} 11. Be2 {[%clk 0:02:35]}  Ng6 {[%clk 0:02:57]} 12. h3 {[%clk 0:02:34]}  Be6 {[%clk 0:02:54]} 13. c4 {[%clk 0:02:19]}  h6 {[%clk 0:02:54]} 14. cxd5 {[%clk 0:02:12]}  Bxd5 {[%clk 0:02:55]} 15. e4 {[%clk 0:02:08]}  Bc6 {[%clk 0:02:39]} 16. Nc4 {[%clk 0:02:04]}  Bc7 {[%clk 0:02:28]} 17. e5 {[%clk 0:01:18]}  hxg5 {[%clk 0:02:19]} 18. exf6 {[%clk 0:01:17]}  gxf6 {[%clk 0:02:20]} 19. Qc2 {[%clk 0:01:13]}  Nf4 {[%clk 0:02:08]} 20. Ne3 {[%clk 0:01:07]}  Re8 {[%clk 0:02:01]} 21. Rfe1 {[%clk 0:00:58]}  Be4 {[%clk 0:01:54]} 22. Qxc5 {[%clk 0:00:53]}  Bb6 {[%clk 0:01:48]} 23. Qb4 {[%clk 0:00:44]}  Ba5 {[%clk 0:01:34]} 24. Qb3 {[%clk 0:00:35]}  Bxe1 {[%clk 0:01:35]} 25. Rxe1 {[%clk 0:00:33]}  Nxe2+ {[%clk 0:01:36]} 26. Rxe2 {[%clk 0:00:34]}  Bxf3 {[%clk 0:01:36]} 27. gxf3 {[%clk 0:00:34]}  Qb6 {[%clk 0:01:28]} 28. Qd5 {[%clk 0:00:22]}  Rad8 {[%clk 0:01:25]} 29. Qf5 {[%clk 0:00:22]}  Qe6 {[%clk 0:01:25]} 30. Qb5 {[%clk 0:00:18]}  Qxh3 {[%clk 0:01:24]} 31. Qxb7 {[%clk 0:00:18]}  Rxe3 {[%clk 0:01:19]} 0-1


[Site "https://www.chess.com"]

[Event "Titled Tuesday Blitz May 10 Early 2022"]
[White "Meshkovs, Nikita"]
[Black "Gurevich, Dmitry"]
[WhiteFideId "11602740"]
[BlackFideId "2000407"]
[WhiteElo "2506"]
[BlackElo "2506"]
[Result "1-0"]
[Round "09"]
[TimeControl "180+1"]
[Date "2022.05.10"]
[WhiteClock "0:00:33"]
[BlackClock "0:01:12"]

1. d4 {[%clk 0:03:00]}  Nf6 {[%clk 0:02:58]} 2. c4 {[%clk 0:03:01]}  a6 {[%clk 0:02:58]} 3. g3 {[%clk 0:03:00]}  c5 {[%clk 0:02:57]} 4. Nf3 {[%clk 0:02:59]}  cxd4 {[%clk 0:02:57]} 5. Nxd4 {[%clk 0:03:00]}  d5 {[%clk 0:02:57]} 6. cxd5 {[%clk 0:02:39]}  Qxd5 {[%clk 0:02:55]} 7. f3 {[%clk 0:02:25]}  e5 {[%clk 0:02:53]} 8. Nc2 {[%clk 0:02:23]}  Qxd1+ {[%clk 0:02:52]} 9. Kxd1 {[%clk 0:02:24]}  Bc5 {[%clk 0:02:39]} 10. e4 {[%clk 0:02:21]}  Nc6 {[%clk 0:02:38]} 11. Nd2 {[%clk 0:01:47]}  Be6 {[%clk 0:02:32]} 12. Bc4 {[%clk 0:01:42]}  Bxc4 {[%clk 0:02:31]} 13. Nxc4 {[%clk 0:01:43]}  O-O-O+ {[%clk 0:02:31]} 14. Ke2 {[%clk 0:01:42]}  b5 {[%clk 0:02:29]} 15. Be3 {[%clk 0:01:29]}  Nd4+ {[%clk 0:02:28]} 16. Bxd4 {[%clk 0:01:25]}  exd4 {[%clk 0:02:20]} 17. Ne5 {[%clk 0:01:25]}  Rhe8 {[%clk 0:02:16]} 18. Nd3 {[%clk 0:01:25]}  Bb6 {[%clk 0:02:14]} 19. a4 {[%clk 0:01:17]}  Kb7 {[%clk 0:02:14]} 20. axb5 {[%clk 0:01:11]}  axb5 {[%clk 0:02:14]} 21. Na3 {[%clk 0:01:12]}  g5 {[%clk 0:01:48]} 22. g4 {[%clk 0:01:06]}  h5 {[%clk 0:01:44]} 23. h3 {[%clk 0:01:06]}  hxg4 {[%clk 0:01:32]} 24. hxg4 {[%clk 0:01:07]}  Nxe4 {[%clk 0:01:32]} 25. fxe4 {[%clk 0:01:06]}  Rxe4+ {[%clk 0:01:31]} 26. Kf2 {[%clk 0:01:04]}  Rxg4 {[%clk 0:01:27]} 27. Rh7 {[%clk 0:01:03]}  Rd7 {[%clk 0:01:20]} 28. Nxb5 {[%clk 0:00:52]}  Re4 {[%clk 0:01:19]} 29. Re1 {[%clk 0:00:39]}  Re3 {[%clk 0:01:15]} 30. Rxe3 {[%clk 0:00:34]}  dxe3+ {[%clk 0:01:15]} 31. Ke2 {[%clk 0:00:35]}  Kc6 {[%clk 0:01:14]} 32. Nc3 {[%clk 0:00:33]}  f5 {[%clk 0:01:12]} 33. Ne5+ {[%clk 0:00:33]} 1-0


[Site "https://www.chess.com"]